fUSD/lending_fUSD_20240322
["ID","MTS","AMOUNT","RATE_DAILY","PERIOD"]
[320064852,1711129332534,150.0,0.00016759,2]
[320064853,1711129352521,155.0,0.00016732,2]
[320064854,1711129352876,286.34497069,0.00016732,2]
[320064855,1711129353537,1129.37884446,0.00016732,2]
[320064856,1711129360093,406.19522411,0.0001623,2]
[320064857,1711129369454,-704.55291816,0.00016918,2]
[320064858,1711129369474,-217.4050215,0.00016919,2]
[320064859,1711129369494,-250.0,0.00017087,2]
[320064860,1711129369513,-250.0,0.00017126,2]
[320064861,1711129369532,-200.0,0.00017184,2]
[320064862,1711129369552,-1450.53,0.0001722,2]
[320064863,1711129369572,-238.6,0.00017249,2]
[320064864,1711129369595,-177.91,0.00017284,2]
[320064865,1711129369616,-238.6,0.00017296,2]
[320064866,1711129369639,-238.6,0.00017344,2]
[320064867,1711129369659,-238.6,0.00017391,2]
[320064868,1711129369680,-238.6,0.00017438,2]
[320064869,1711129369700,-238.6,0.00017486,2]
[320064870,1711129369720,-238.6,0.00017533,2]
[320064871,1711129369741,-238.6,0.0001758,2]
[320064872,1711129369762,-840.0,0.00017614,2]
[320064873,1711129369783,-238.6,0.00017628,2]
[320064874,1711129369804,-238.6,0.00017675,2]
[320064875,1711129369829,-2471.07,0.00017699,2]
[320064876,1711129369852,-150.0,0.00017699,2]
[320064877,1711129369872,-5055.5207,0.000177,2]
[320064878,1711129369896,-238.6,0.00017722,2]
[320064879,1711129369917,-238.6,0.0001777,2]
[320064880,1711129369938,-5677.81313797,0.000178,2]
[320064881,1711129369960,-159.06,0.00017808,10]
[320064882,1711129369981,-238.6,0.00017817,2]
[320064883,1711129370003,-308.81,0.0001782,2]
[320064884,1711129370025,-238.6,0.00017864,2]
[320064885,1711129370047,-3909.8846,0.000179,2]
[320064886,1711129370067,-1000.0,0.000179,2]
[320064887,1711129370088,-156.28706426,0.000179,2]
[320064888,1711129370109,-150.04718779,0.000179,2]
[320064889,1711129370130,-2500.0,0.000179,2]
[320064890,1711129370153,-682.45128896,0.000179,2]
[320064891,1711129370174,-155.0,0.00017908,2]
[320064892,1711129370198,-238.6,0.00017911,2]
[320064893,1711129370221,-238.6,0.00017959,2]
[320064894,1711129370243,-3716.05808136,0.00017994,2]
[320064895,1711129371449,198.90080608,0.00016732,2]
[320064896,1711129375758,406.19522411,0.0001623,2]
[320064897,1711129386701,277.92,0.00016065,2]
[320064898,1711129391427,408.4338532,0.0001623,2]
[320064899,1711129396300,291.12818161,0.00016732,2]
[320064900,1711129408232,297.51844574,0.00016732,2]
[320064901,1711129429443,406.10281549,0.0001623,2]
[320064902,1711129436101,295.18591355,0.00016732,2]
[320064903,1711129437346,1129.08571569,0.00016732,2]
[320064904,1711129440295,290.64539976,0.00016732,2]
[320064905,1711129445911,936.00211742,0.00016732,2]
[320064906,1711129454485,155.0,0.00016732,2]
[320064907,1711129479095,1073.24721023,0.00016732,10]
[320064908,1711129490246,217.4050215,0.00016732,2]
[320064913,1711129515941,163.85,0.00013916,2]
[320064914,1711129616606,4002.40329088,0.00013499,2]
[320064915,1711129632142,-163.56282045,0.00017222,2]
[320064916,1711129634914,3335.33607574,0.00013499,2]
[320064917,1711129638164,-842.561501,0.00017136,2]
[320064918,1711129638184,-540.99009771,0.00017222,2]
[320064919,1711129638204,-476.84559158,0.00017223,2]
[320064920,1711129638224,-250.0,0.00017311,2]
[320064921,1711129638243,-250.0,0.00017312,2]
[320064922,1711129638264,-238.6,0.00017376,2]
[320064923,1711129638283,-238.6,0.00017424,2]
[320064924,1711129638303,-238.6,0.00017472,2]
[320064925,1711129638323,-71.25137626,0.00017519,2]
[320064926,1711129653986,3335.33607574,0.00013499,2]
[320064927,1711129669132,1737.71009546,0.00013499,2]
[320064928,1711129685976,1737.71009546,0.00013499,2]
[320064929,1711129720770,1737.71009546,0.00013499,2]
[320064930,1711129758797,210.1157055,0.00013499,2]
[320064931,1711129758820,1527.59438996,0.00013499,2]
[320064932,1711129765110,-167.34862374,0.00017519,2]
[320064933,1711129765130,-3755.04611182,0.00017534,2]
[320064934,1711129765463,-197.837348,0.00017534,2]
[320064935,1711129765483,-238.6,0.00017567,2]
[320064936,1711129765504,-238.6,0.00017614,2]
[320064937,1711129765524,-238.6,0.00017662,2]
[320064938,1711129765544,-238.6,0.0001771,2]
[320064939,1711129765565,-238.6,0.00017757,2]
[320064940,1711129765583,-2471.07,0.00017757,2]
[320064941,1711129765602,-5055.5207,0.000178,2]
[320064942,1711129765623,-238.6,0.00017805,2]
[320064943,1711129765643,-159.06,0.00017808,10]
[320064944,1711129765664,-150.0,0.00017819,2]
[320064945,1711129765684,-2756.29754144,0.0001782,2]
[320064946,1711129772085,-202.83,0.0001724,2]
[320064947,1711129776776,1737.71009546,0.00013499,2]
[320064948,1711129789446,651.0,0.00017753,2]
[320064949,1711129799281,1737.71009546,0.00013499,2]
[320064950,1711129815035,291.76,0.00015336,2]
[320064951,1711129815261,291.76,0.000176,2]
[320064952,1711129818354,196.895265,0.00016986,2]
[320064953,1711129829438,1737.71009546,0.00013499,2]
[320064963,1711129831748,-196.895265,0.00017808,2]
[320064965,1711129831759,-238.6,0.00017853,2]
[320064966,1711129831768,-5677.81313797,0.000179,2]
[320064967,1711129831778,-3732.79530075,0.000179,2]
[320064968,1711129831790,-815.58805588,0.000179,2]
[320064969,1711129831819,-307.32506113,0.000179,2]
[320064970,1711129831828,-210.63637117,0.000179,2]
[320064971,1711129831839,-803.1102161,0.000179,2]
[320064972,1711129831852,-2896.13801273,0.000179,2]
[320064973,1711129831861,-1434.48698872,0.000179,2]
[320064974,1711129831886,-300.63244187,0.000179,2]
[320064975,1711129831897,-1535.76926331,0.000179,2]
[320064976,1711129831928,-953.30742572,0.000179,2]
[320064977,1711129831937,-1000.0,0.000179,2]
[320064978,1711129831947,-156.28706426,0.000179,2]
[320064979,1711129831956,-682.45128896,0.000179,2]
[320064980,1711129831966,-238.6,0.000179,2]
[320064981,1711129831976,-155.0,0.00017908,2]
[320064982,1711129831986,-238.6,0.00017948,2]
[320064983,1711129831998,-150.0,0.00017973,2]
[320064984,1711129832009,-1319.19287298,0.00017974,2]
[320064985,1711129832021,-131.33712702,0.00017974,2]
[320064986,1711129832030,-194.99338474,0.00017996,2]
[320064987,1711129832108,-43.60661526,0.00017996,2]
[320064988,1711129832118,-293.97338574,0.00017998,2]
[320065014,1711129837555,-246.90802045,0.00017998,2]
[320065016,1711129837565,-173.01265132,0.00017998,2]
[320065017,1711129837575,-249.95358599,0.00017998,2]
[320065018,1711129837585,-445.17249158,0.00017998,2]
[320065020,1711129837595,-4920.01422415,0.00017998,2]
[320065022,1711129837605,-439.87705594,0.00017998,2]
[320065024,1711129837614,-308.37540429,0.00017998,2]
[320065026,1711129837623,-684.82782894,0.00017998,2]
[320065028,1711129837634,-744.12087256,0.00017999,2]
[320065029,1711129837643,-7441.63241139,0.00017999,2]
[320065030,1711129837653,-888107.09064561,0.00018,2]
[320065031,1711129837663,-10432.51070136,0.00018,2]
[320065032,1711129837673,-22508.14709496,0.00018,2]
[320065067,1711129838481,-3696.923446,0.00018,2]
[320065069,1711129838493,-320.55082822,0.00018,2]
[320065071,1711129838505,-568.94985213,0.00018,2]
[320065073,1711129838517,-453.30570109,0.00018,2]
[320065075,1711129838527,-6371.73877281,0.00018,2]
[320065078,1711129838539,-51948.39330538,0.00018,2]
[320065080,1711129838547,-1000.0,0.00018,2]
[320065082,1711129838556,-1533.0,0.00018,2]
[320065084,1711129838565,-3000.0,0.00018,2]
[320065086,1711129838574,-8467.4924001,0.00018019,2]
[320065088,1711129838583,-2919.7662083,0.00018019,2]
[320065090,1711129838591,-201.2817975,0.00018031,2]
[320065092,1711129838601,-16254.49173141,0.00018031,2]
[320065094,1711129838612,-522.95211112,0.00018031,2]
[320065097,1711129838627,-352.679772,0.00018031,2]
[320065100,1711129838643,-965.83846625,0.00018031,2]
[320065102,1711129838655,-864.78847124,0.00018031,2]
[320065104,1711129838666,-688.5,0.00018031,2]
[320065108,1711129838691,-1780.0858619,0.00018031,2]
[320065110,1711129838703,-68224.33356287,0.00018031,2]
[320065113,1711129838719,-38487.94799691,0.00018031,2]
[320065115,1711129838729,-238.6,0.00018043,2]
[320065117,1711129838738,-238.6,0.00018091,2]
[320065119,1711129838748,-238.6,0.00018139,2]
[320065121,1711129838758,-1339.568427,0.00018165,2]
[320065123,1711129838769,-238.6,0.00018186,2]
[320065125,1711129838779,-238.6,0.00018234,2]
[320065127,1711129838788,-238.6,0.00018281,2]
[320065129,1711129838798,-1506.17687922,0.00018325,2]
[320065168,1711129839143,-4855.70841766,0.00018555,2]
[320065170,1711129839154,-196.895265,0.0001863,2]
[320065172,1711129839164,-682.45128893,0.00018653,2]
[320065174,1711129839175,-160.0,0.00018846,2]
[320065176,1711129839184,-150.04718778,0.00018847,2]
[320065178,1711129839193,-156.28706426,0.000189,2]
[320065180,1711129839202,-3000.0,0.0001898,2]
[320065182,1711129839212,-800.0,0.00018986,2]
[320065184,1711129839221,-297.81282951,0.00019,2]
[320065186,1711129839231,-1000.0,0.00019,2]
[320065189,1711129839240,-1550.0,0.00019,3]
[320065190,1711129839249,-150.04718778,0.00019005,2]
[320065192,1711129839259,-150.04718778,0.00019163,2]
[320065194,1711129839269,-184.23675005,0.00019178,2]
[320065196,1711129839279,-341.41940066,0.00019178,2]
[320065199,1711129839288,-161.52,0.0001918,2]
[320065200,1711129839298,-489.78,0.000192,2]
[320065202,1711129839307,-1083.0,0.00019206,2]
[320065204,1711129839317,-4855.70841766,0.0001921,2]
[320065206,1711129839326,-800.0,0.00019233,2]
[320065208,1711129839336,-167.14,0.0001927,2]
[320065210,1711129839345,-150.04718778,0.00019321,2]
[320065212,1711129839354,-682.45128893,0.00019406,2]
[320065214,1711129839363,-196.895265,0.00019452,2]
[320065216,1711129839374,-150.04718778,0.00019479,2]
[320065219,1711129839383,-150.04718778,0.00019637,2]
[320065222,1711129839392,-163.47,0.00019723,2]
[320065226,1711129839402,-321.72947893,0.00019768,2]
[320065228,1711129839412,-150.04718778,0.00019795,2]
[320065230,1711129839422,-840.0,0.00019815,2]
[320065232,1711129839431,-291.76,0.00019864,2]
[320065234,1711129839441,-4855.70841766,0.00019865,2]
[320065236,1711129839450,-101477.04259134,0.0001988,2]
[320065310,1711129840204,-1197.70597438,0.0001988,2]
[320065313,1711129840216,-1091.65019156,0.0001988,2]
[320065315,1711129840227,-1603.97968,0.0001988,2]
[320065317,1711129840239,-760.35518571,0.0001988,2]
[320065320,1711129840256,-398896.77106924,0.0001988,2]
[320065322,1711129840266,-156.28706426,0.000199,2]
[320065324,1711129840275,-150.04718778,0.00019953,2]
[320065326,1711129840285,-854.24216831,0.0002,2]
[320065328,1711129840294,-1000.0,0.0002,2]
[320065330,1711129840303,-1697.41839639,0.0002,2]
[320065332,1711129840313,-590.61224363,0.0002,2]
[320065334,1711129840323,-5000.0,0.0002,2]
[320065336,1711129840333,-286.93726099,0.0002,2]
[320065338,1711129840342,-150.04718778,0.00020111,2]
[320065340,1711129840352,-682.45128893,0.00020159,2]
[320065342,1711129840361,-177.91,0.00020164,2]
[320065344,1711129840370,-3000.0,0.0002023,2]
[320065346,1711129840379,-150.04718778,0.00020268,2]
[320065348,1711129840389,-196.895265,0.00020274,2]
[320065350,1711129840397,-722.0,0.000203,2]
[320065352,1711129840406,-3071.0,0.000204,2]
[320065354,1711129840416,-150.04718778,0.00020426,2]
[320065356,1711129840425,-1250.0,0.000205,2]
[320065359,1711129840438,-4855.70841766,0.0002052,2]
[320065361,1711129840448,-1540.88,0.00020578,2]
[320065363,1711129840457,-481.54,0.00020578,2]
[320065365,1711129840466,-408.84,0.00020578,2]
[320065367,1711129840475,-408.84,0.00020578,2]
[320065369,1711129840485,-408.84,0.00020578,2]
[320065371,1711129840494,-150.04718778,0.00020584,2]
[320065373,1711129840503,-303.35,0.0002071,2]
[320065375,1711129840513,-1450.53,0.00020713,2]
[320065377,1711129840523,-150.04718778,0.00020742,2]
[320065379,1711129840533,-303.35,0.00020765,2]
[320065381,1711129840542,-5544.65826643,0.0002079,2]
[320065383,1711129840552,-5544.65826638,0.0002079,2]
[320065385,1711129840561,-5544.65826638,0.0002079,2]
[320065387,1711129840571,-5544.65826638,0.0002079,2]
[320065390,1711129840581,-5544.65826638,0.0002079,2]
[320065392,1711129840590,-1813.0,0.000208,2]
[320065394,1711129840600,-303.35,0.00020819,2]
[320065396,1711129840609,-214.0,0.0002084,2]
[320065398,1711129840619,-167.14,0.0002086,2]
[320065400,1711129840628,-303.35,0.00020874,2]
[320065402,1711129840638,-7500.0,0.000209,2]
[320065404,1711129840647,-156.28706426,0.000209,2]
[320065406,1711129840657,-150.04718778,0.000209,2]
[320065408,1711129840666,-815.45242105,0.000209,2]
[320065410,1711129840675,-207.01007355,0.000209,3]
[320065412,1711129840684,-682.45128893,0.00020912,2]
[320065414,1711129840693,-303.35,0.00020928,2]
[320065416,1711129840702,-160.0,0.0002094,2]
[320065419,1711129840716,-55962.54034083,0.0002098,2]
[320065421,1711129840725,-303.35,0.00020983,2]
[320065423,1711129840734,-300.0,0.00020999,2]
[320065425,1711129840744,-300.0,0.00020999,2]
[320065427,1711129840753,-300.0,0.00020999,2]
[320065429,1711129840763,-300.0,0.00020999,2]
[320065431,1711129840774,-300.0,0.00020999,2]
[320065433,1711129840784,-300.0,0.00020999,2]
[320065435,1711129840795,-300.0,0.00020999,2]
[320065437,1711129840806,-238269.35309899,0.00021,2]
[320065440,1711129840819,-286.015,0.00021,2]
[320065442,1711129840831,-7215.31022044,0.00021,2]
[320065455,1711129840938,-1059.0689981,0.00021,2]
[320065478,1711129841141,-703.5,0.00021,2]
[320065480,1711129841153,-523.05913098,0.00021,2]
[320065482,1711129841165,-254.25,0.00021,2]
[320065485,1711129841182,-281.144,0.00021,2]
[320065627,1711129842547,-296.18044634,0.00017998,2]
[320065628,1711129842560,-453.77208595,0.00017998,2]
[320065629,1711129842570,-7500.0,0.000209,2]
[320065630,1711129842579,-648.49663216,0.00021,2]
[320065633,1711129842591,-9133.2759338,0.00021,2]
[320065636,1711129842613,-2336.25,0.00021,2]
[320065643,1711129842671,-3199.00978879,0.00021,2]
[320065646,1711129842684,-1189.88477338,0.00021,2]
[320065648,1711129842697,-695.70501,0.00021,2]
[320065652,1711129842728,-2875.3445252,0.00021,2]
[320065655,1711129842741,-6957.00129753,0.00021,2]
[320065657,1711129842754,-632.52348141,0.00021,2]
[320065670,1711129842890,-330.943774,0.00021,2]
[320065673,1711129842905,-5426.29162401,0.00021,2]
[320065679,1711129842960,-114387.56375188,0.00021,2]
[320065682,1711129842974,-71086.68141046,0.00021,2]
[320065703,1711129843273,-87981.05191117,0.00021,2]
[320065734,1711129843761,1737.71009546,0.00013499,2]
[320065754,1711129845691,-499.99,0.00018281,2]
[320065756,1711129845700,-6500.01,0.00021,2]
[320065763,1711129845755,-4605.79862222,0.00021,2]
[320065765,1711129845767,-462.89936934,0.00021,2]
[320065767,1711129845780,-3334.9,0.00021,2]
[320065770,1711129845792,-1064.7,0.00021,2]
[320065775,1711129845833,-4525.78722793,0.00021,2]
[320065785,1711129845986,-1430.62910802,0.00021,2]
[320065786,1711129846001,-2733.97298494,0.00021,2]
[320065787,1711129846019,-759.097132,0.00021,2]
[320065789,1711129846072,-2713.31100907,0.00021,2]
[320065807,1711129855985,936.74891464,0.00013499,2]
[320065808,1711129860827,1737.71009546,0.00015749,2]
[320065809,1711129882648,1737.71009546,0.00015749,2]
[320065810,1711129894250,164.53028,0.0001,2]
[320065812,1711129904668,1163.38383093,0.00013499,2]
[320065813,1711129977866,19562.36155933,0.00013499,2]
[320065814,1711130013843,19562.36155933,0.00013499,2]
[320065833,1711130731121,-268.95,0.00016925,2]
[320065834,1711130731140,-34.38486401,0.00017899,2]
[320065835,1711130754187,255.5,0.00016765,2]
[320065837,1711130826272,-150.0,0.00017899,2]
[320065838,1711130826297,-62.32843268,0.00017899,2]
[320065839,1711130840085,-87.67156732,0.00017899,2]
[320065840,1711130840105,-5722.02323742,0.000179,2]
[320065844,1711130889022,-4892.0,0.000179,2]
[320065845,1711130954111,-1000.0,0.00017,2]
[320065846,1711130954131,-1000.0,0.000178,2]
[320065847,1711130954168,-35546.72016258,0.000179,2]
[320065848,1711130954191,-566.2327,0.000179,2]
[320065849,1711130954212,-309.418625,0.000179,2]
[320065850,1711130954232,-1957.5541324,0.0001799,2]
[320065851,1711130954252,-680.18191037,0.00017998,2]
[320065852,1711130954273,-7748.85072808,0.00017998,2]
[320065853,1711130954297,-315.49159155,0.00017998,2]
[320065854,1711130954320,-2342.82778821,0.00017998,2]
[320065855,1711130954345,-155.45967189,0.00017998,2]
[320065856,1711130954367,-905.12941109,0.00017999,2]
[320065857,1711130954389,-353.53104154,0.00017999,5]
[320065858,1711130954413,-63992.45819685,0.00018,2]
[320065873,1711131031815,-1779.66633035,0.000179,2]
[320065874,1711131031852,-332.63,0.000179,2]
[320065875,1711131032012,-387.70366965,0.000179,2]
[320065876,1711131032021,-98.86475748,0.000179,2]
[320065877,1711131032048,-51.18243031,0.000179,2]
[320065878,1711131032057,-5993.61756969,0.00018,2]
[320065879,1711131032088,-3768.61447636,0.00018,2]
[320065880,1711131032105,-2738.06733,0.00018,2]
[320065990,1711131038774,-85324.42544269,0.00018,2]
[320065992,1711131038786,-350.0,0.00018,2]
[320066091,1711131039862,-1749.46483334,0.00018,2]
[320066092,1711131039875,-510.66973962,0.00018,2]
[320066100,1711131040064,-1538.7074705,0.00018,2]
[320066125,1711131040294,-13400.49495881,0.00018,2]
[320066419,1711131043194,-1900.00943254,0.00018,2]
[320066427,1711131043266,-10500.0,0.00018,2]
[320066617,1711131046216,-8066.96719349,0.00018,2]
[320066618,1711131046338,-15326.46825,0.00018,2]
[320066619,1711131046358,-2019.67326497,0.00018,2]
[320066620,1711131046375,-263.06399308,0.00018,2]
[320066621,1711131046398,-699.36562168,0.00018,2]
[320066666,1711131159723,777.60034269,0.00016198,2]
[320066669,1711131246686,282.24,0.00015853,2]
[320066670,1711131334816,-485.24181947,0.00016994,2]
[320066671,1711131334840,-155.0,0.00016994,2]
[320066672,1711131334864,-806.04078144,0.00016995,2]
[320066673,1711131334887,-19666.01550526,0.00017,5]
[320066795,1711131822628,268.12,0.00015405,2]
[320066797,1711131914440,352.50077746,0.0001381,2]
[320066798,1711132027124,-447.68802082,0.00017252,2]
[320066799,1711132027155,-358.35276062,0.00017252,2]
[320066800,1711132027181,-250.0,0.00017253,2]
[320066801,1711132027206,-250.0,0.00017253,2]
[320066802,1711132027230,-291.66761664,0.00017258,2]
[320066804,1711132041138,-167.0025183,0.00017258,2]
[320066806,1711132156103,-41.32986506,0.00017258,2]
[320066807,1711132156124,-806.04078144,0.00017261,2]
[320066808,1711132156144,-531.05819192,0.00017262,2]
[320066809,1711132156163,-200.0,0.00017264,2]
[320066810,1711132156184,-481.81,0.00017264,2]
[320066811,1711132156205,-202.83,0.00017265,2]
[320066812,1711132156225,-23900.0,0.00017265,2]
[320066813,1711132156251,-174.51,0.00017323,2]
[320066814,1711132156271,-150.0,0.00017326,2]
[320066815,1711132156291,-200.92,0.00017344,2]
[320066816,1711132156311,-1000.0,0.00017346,2]
[320066817,1711132156331,-261.0811671,0.00017609,2]
[320066818,1711132156351,-499.99,0.00017609,2]
[320066819,1711132156370,-150.99,0.00017609,2]
[320066820,1711132156395,-198.4,0.00017658,2]
[320066821,1711132156415,-299.99,0.00017658,2]
[320066822,1711132156438,-268.12,0.00017669,2]
[320066823,1711132156458,-489.59113996,0.00017769,2]
[320066824,1711132156476,-150.99,0.00017769,2]
[320066825,1711132156498,-167.14,0.00017775,2]
[320066826,1711132162102,-168.11,0.00017808,10]
[320066827,1711132162122,-2954.97605666,0.0001782,2]
[320066846,1711132232135,-45.02394334,0.0001782,2]
[320066847,1711132232145,-806.04078144,0.00017897,2]
[320066848,1711132232154,-899.94330306,0.00017898,2]
[320066849,1711132232163,-2221.70808982,0.00017899,2]
[320066850,1711132232173,-3752.28388234,0.000179,2]
[320066851,1711132232185,-10092.16681766,0.000179,2]
[320066852,1711132232194,-14049.3865,0.000179,2]
[320066853,1711132232204,-9074.9343,0.000179,2]
[320066854,1711132232213,-282.18369658,0.000179,2]
[320066855,1711132232222,-154.0445423,0.000179,2]
[320066856,1711132232231,-800.0,0.000179,6]
[320066857,1711132232241,-370.81723304,0.000179,2]
[320066858,1711132232250,-150.04718778,0.000179,2]
[320066859,1711132232259,-943.29,0.0001799,2]
[320066860,1711132232268,-5293.10548468,0.00017998,2]
[320066861,1711132232277,-155.95610214,0.00017998,2]
[320066862,1711132232287,-659.28640993,0.00017998,2]
[320066863,1711132232296,-193.64578564,0.00017998,2]
[320066864,1711132232308,-40763.43681025,0.00017998,2]
[320066865,1711132232329,-2723.92692721,0.00017998,2]
[320066866,1711132232376,-4554.90342949,0.00017998,2]
[320066867,1711132232385,-586.84412762,0.00017999,2]
[320066868,1711132232396,-350.03959862,0.00017999,2]
[320066869,1711132232405,-1719.21284427,0.00018,2]
[320066871,1711132232418,-634.6150576,0.00018,2]
[320066875,1711132232451,-404.8707638,0.00018,2]
[320066895,1711132237933,-28069.37388668,0.00018,2]
[320066899,1711132238005,-662.3145,0.000179,2]
[320066900,1711132238015,-19579.65852464,0.00018,2]
[320066901,1711132238086,-913.80920272,0.00018,2]
[320066902,1711132238146,-85324.42544269,0.00018,2]
[320067099,1711132240286,-1861.83800176,0.00018,2]
[320067101,1711132240297,-1593.99886743,0.00018,2]
[320067104,1711132240309,-1262.38819995,0.00018,2]
[320067106,1711132240328,-573.94239823,0.00018,2]
[320067109,1711132240339,-459566.44876567,0.00018,2]
[320067111,1711132240348,-187483.25035936,0.00018,2]
[320067113,1711132240358,-1506.17687922,0.0001811,2]
[320067115,1711132240367,-282.18369653,0.00018655,2]
[320067117,1711132240377,-177.91,0.00018689,2]
[320067119,1711132240386,-370.81723301,0.00018879,2]
[320067121,1711132240395,-150.04718778,0.00018879,2]
[320067123,1711132240404,-1550.0,0.00019,3]
[320067125,1711132240413,-207.34,0.00019141,2]
[320067126,1711132240422,-500.0,0.00019178,2]
[320067129,1711132240431,-500.0,0.00019178,2]
[320067131,1711132240441,-300.0,0.00019178,2]
[320067133,1711132240450,-500.0,0.00019178,2]
[320067134,1711132240459,-222.3828009,0.00019178,2]
[320067137,1711132240468,-173.30774106,0.00019178,2]
[320067139,1711132240477,-372.60175424,0.00019178,2]
[320067140,1711132240487,-500.0,0.00019178,2]
[320067143,1711132240496,-150.59769669,0.00019178,2]
[320067145,1711132240506,-207.34,0.00019192,2]
[320067147,1711132240515,-507.97,0.00019221,2]
[320067149,1711132240523,-23900.0,0.00019221,2]
[320067151,1711132240532,-207.34,0.00019242,2]
[320067187,1711132240863,-163.47,0.00019257,2]
[320067192,1711132240914,-207.34,0.00019292,2]
[320067194,1711132240924,-207.34,0.00019343,2]
[320067196,1711132240934,-207.34,0.00019393,2]
[320067198,1711132240943,-154.04454228,0.000194,2]
[320067200,1711132240953,-282.18369653,0.00019411,2]
[320067202,1711132240962,-207.34,0.00019444,2]
[320067204,1711132240971,-207.34,0.00019494,2]
[320067206,1711132240980,-860.06772857,0.000195,2]
[320067208,1711132240990,-1000.0,0.00019514,2]
[320067210,1711132240999,-207.34,0.00019544,2]
[320067212,1711132241008,-168.11,0.00019553,10]
[320067214,1711132241017,-207.34,0.00019595,2]
[320067217,1711132241027,-207.34,0.00019645,2]
[320067218,1711132241035,-207.34,0.00019696,2]
[320067220,1711132241044,-207.34,0.00019746,2]
[320067222,1711132241053,-207.34,0.00019796,2]
[320067224,1711132241062,-207.34,0.00019847,2]
[320067226,1711132241074,-370.81723301,0.00019859,2]
[320067228,1711132241083,-150.04718778,0.00019859,2]
[320067230,1711132241092,-207.34,0.00019897,2]
[320067232,1711132241101,-268.12,0.00019933,2]
[320067234,1711132241110,-207.34,0.00019947,2]
[320067237,1711132241120,-207.34,0.00019998,2]
[320067239,1711132241129,-854.24216831,0.0002,2]
[320067241,1711132241138,-680.0424,0.0002,2]
[320067243,1711132241147,-207.34,0.00020048,2]
[320067245,1711132241159,-209.0,0.0002005,2]
[320067247,1711132241168,-207.34,0.00020099,2]
[320067249,1711132241177,-282.18369653,0.00020166,2]
[320067251,1711132241186,-3000.0,0.0002032,2]
[320067253,1711132241196,-304.57,0.00020441,2]
[320067255,1711132241205,-315.0,0.00020441,2]
[320067257,1711132241214,-517.17,0.00020441,2]
[320067259,1711132241223,-152.34,0.00020441,2]
[320067261,1711132241232,-347.09,0.00020441,2]
[320067263,1711132241241,-1250.0,0.000205,2]
[320067265,1711132241250,-2763.0,0.000206,2]
[320067267,1711132241259,-209.0,0.0002061,2]
[320067269,1711132241268,-150.0,0.00020696,2]
[320067271,1711132241277,-150.0,0.00020697,2]
[320067273,1711132241286,-150.0,0.00020714,2]
[320067275,1711132241295,-150.0,0.00020716,2]
[320067277,1711132241304,-300.0,0.00020726,2]
[320067279,1711132241313,-150.0,0.00020726,2]
[320067281,1711132241324,-150.0,0.00020729,2]
[320067283,1711132241333,-1500.0,0.00020729,2]
[320067285,1711132241342,-150.0,0.00020733,2]
[320067287,1711132241350,-150.0,0.00020735,2]
[320067289,1711132241360,-150.0,0.00020735,2]
[320067291,1711132241369,-1500.0,0.00020736,2]
[320067293,1711132241378,-3754.71835416,0.00020736,2]
[320067296,1711132241391,-150.0,0.00020737,2]
[320067298,1711132241400,-150.0,0.00020738,2]
[320067300,1711132241410,-150.0,0.00020738,2]
[320067302,1711132241419,-150.0,0.00020741,2]
[320067304,1711132241428,-150.0,0.00020743,2]
[320067306,1711132241438,-150.0,0.00020744,2]
[320067308,1711132241448,-1500.0,0.00020744,2]
[320067310,1711132241457,-150.0,0.00020745,2]
[320067312,1711132241467,-150.0,0.00020747,2]